bitfinex/quotes_ETHUSD_20250822
["timestamp","ask_amount","ask_price","bid_price","bid_amount"]
[1755886528771,25.48910808,4790.9,4788.8,0.02]
[1755886528772,3.66,4790.8,4788.8,0.02]
[1755886528978,16.54870808,4789.9,4788.8,0.02]
[1755886529169,24.94370808,4789.9,4788.8,0.02]
[1755886529376,0.7648,4788.9,4788.8,0.02]
[1755886529573,6.1598,4788.9,4788.8,0.02]
[1755886530003,9.9163,4788.9,4788.8,0.02]
[1755886530889,10.2125,4788.9,4788.8,0.02]
[1755886531518,6.5545,4788.9,4788.8,0.02]
[1755886531818,9.457,4788.9,4788.8,0.02]
[1755886532024,5.798,4788.9,4788.8,0.02]
[1755886532425,9.457,4788.9,4788.8,0.02]
[1755886532894,2.798,4788.9,4788.8,0.02]
[1755886533094,2.798,4788.9,4788.8,0.3289]
[1755886533294,6.457,4788.9,4788.8,0.02]
[1755886534525,5.797,4788.9,4788.8,0.3289]
[1755886534822,1.8428,4788.9,4788.8,0.6253]
[1755886534997,5.2054,4788.9,4788.8,0.6253]
[1755886535319,5.3102,4788.9,4788.8,0.6253]
[1755886535706,5.3102,4788.9,4788.8,0.3289]
[1755886536217,5.3102,4788.9,4788.8,0.021]
[1755886536218,5.9702,4788.9,4788.8,0.021]
[1755886537199,1.6512,4788.9,4788.8,0.021]
[1755886537408,5.9702,4788.9,4788.8,0.021]
[1755886538133,6.7267,4788.9,4788.8,0.021]
[1755886538431,2.2064,4788.9,4788.8,0.021]
[1755886538625,5.949059,4788.9,4788.8,0.021]
[1755886538821,6.705559,4788.9,4788.8,0.021]
[1755886539416,5.949059,4788.9,4788.8,0.021]
[1755886540512,2.290059,4788.9,4788.8,0.021]
[1755886540708,5.949059,4788.9,4788.8,0.021]
[1755886541227,5.289059,4788.9,4788.8,0.021]
[1755886541425,5.2054,4788.9,4788.8,0.021]
[1755886541905,5.8654,4788.9,4788.8,0.021]
[1755886542839,1.5464,4788.9,4788.8,0.021]
[1755886543137,5.2054,4788.9,4788.8,0.021]
[1755886545006,1.5464,4788.9,4788.8,0.021]
[1755886545758,5.2054,4788.9,4788.8,0.021]
[1755886547233,1.739,4789.6,4788.8,0.021]
[1755886547489,0.28290642,4790.8,4788.9,0.02088162]
[1755886547490,0.083636,4790.2,4788.9,0.02088162]
[1755886547633,0.083636,4790.2,4788.8,0.021]
[1755886547634,1.739,4790.6,4789.3,11.97547524]
[1755886547835,1.739,4790.6,4789.0,0.02088118]
[1755886547836,3.659,4790.5,4788.8,0.021]
[1755886548139,0.66,4790.4,4788.9,0.02088162]
[1755886548461,0.66,4790.4,4788.8,0.021]
[1755886548462,0.1048,4789.0,4788.8,0.021]
[1755886548829,3.7628,4789.0,4788.8,0.021]
[1755886549927,3.658,4788.9,4788.8,0.021]
[1755886550759,5.0757,4788.9,4788.8,0.021]
[1755886551559,1.4177,4788.9,4788.8,0.021]
[1755886551769,5.0757,4788.9,4788.8,0.021]
[1755886552546,1.4177,4788.9,4788.8,0.021]
[1755886552749,4.775,4788.9,4788.8,0.021]
[1755886552967,3.658,4788.9,4788.8,0.021]
[1755886553139,3.7628,4788.9,4788.8,0.021]
[1755886553733,0.1048,4788.9,4788.8,0.021]
[1755886553949,3.7628,4788.9,4788.8,0.021]
[1755886554146,0.1048,4788.9,4788.8,0.021]
[1755886554445,3.7628,4788.9,4788.8,0.021]
[1755886555149,0.1048,4788.9,4788.8,0.021]
[1755886555470,0.13118648,4790.8,4788.8,0.021]
[1755886555769,3.658,4790.7,4788.8,0.021]
[1755886555968,0.18973165,4790.6,4788.8,0.021]
[1755886556550,0.022,4790.8,4788.9,0.02088162]
[1755886556772,3.658,4790.7,4788.9,0.02088162]
[1755886556977,0.682,4790.8,4788.9,0.02088162]
[1755886557161,3.658,4790.7,4788.9,0.02088162]
[1755886558069,0.002,4789.4,4788.9,0.02088162]
[1755886558376,0.002,4789.4,4788.8,0.021]
[1755886558886,0.002,4789.4,4788.9,0.02088162]
[1755886560255,0.002,4789.4,4789.3,3.0]
[1755886560454,0.022,4790.8,4789.3,9.07039887]
[1755886560672,0.022,4790.8,4789.4,2.181071]
[1755886560871,0.022,4790.8,4789.3,1.738]
[1755886561481,0.457,4790.7,4789.3,1.738]
[1755886561791,0.022,4790.8,4789.3,1.738]
[1755886562084,0.66,4790.6,4789.3,1.738]
[1755886562287,0.66,4790.6,4789.4,0.02087944]
[1755886562647,0.66,4790.6,4789.3,1.738]
[1755886562851,0.457,4790.7,4789.4,0.02087944]
[1755886563051,0.457,4790.7,4789.0,0.02088118]
[1755886563785,0.022,4790.8,4789.6,3.0]
[1755886564598,0.022,4790.8,4789.7,0.02087813]
[1755886565399,0.104,4790.2,4789.5,0.104]
[1755886565708,0.104,4790.2,4789.6,0.02087857]
[1755886566074,0.022,4790.8,4789.6,4.75887857]
[1755886566279,0.104,4790.7,4790.0,0.104]
[1755886566513,0.022,4790.8,4790.5,0.104]
[1755886566727,0.022,4790.8,4790.6,0.02087421]
[1755886567019,0.022,4790.8,4790.3,3.104]
[1755886568123,0.022,4790.8,4790.7,0.104]
[1755886568695,0.022,4790.8,4790.3,3.0]
[1755886568915,0.022,4790.8,4790.3,0.104]
[1755886569111,0.104,4790.4,4790.1,3.0]
[1755886569292,0.104,4790.4,4790.2,0.02087595]
[1755886569835,0.022,4790.8,4790.3,11.97547524]
[1755886570132,0.022,4790.8,4790.0,3.656]
[1755886570336,0.104,4790.7,4790.1,0.104]
[1755886570500,0.104,4790.7,4790.3,11.97547524]
[1755886571096,0.126,4790.8,4790.0,15.63147524]
[1755886571403,0.126,4790.8,4790.1,0.104]
[1755886571921,0.022,4790.8,4790.3,0.104]
[1755886572086,0.457,4790.7,4789.7,4.738]
[1755886572289,0.104,4790.3,4789.9,3.0]
[1755886572490,0.104,4790.3,4790.0,0.02087682]
[1755886572911,0.022,4790.8,4790.2,12.07947524]
[1755886573111,0.022,4790.8,4790.3,3.02087551]
[1755886573315,0.022,4790.8,4790.4,0.02087508]
[1755886573511,0.022,4790.8,4790.7,0.104]
[1755886573829,0.022,4790.8,4790.7,3.104]
[1755886575540,0.022,4790.8,4790.7,6.758]
[1755886577133,0.022,4790.8,4790.7,0.104]
[1755886577319,0.022,4790.8,4790.7,3.758]
[1755886577836,0.022,4790.8,4790.7,6.758]
[1755886578068,0.002,4791.3,4790.8,3.66]
[1755886578255,0.02,4792.8,4791.7,11.97547524]
[1755886578541,0.02,4792.8,4791.0,1.11942514]
[1755886578542,0.02,4792.8,4792.7,14.96789274]
[1755886578827,0.02,4792.8,4792.7,20.46389274]
[1755886579206,0.144,4793.8,4792.7,20.46389274]
[1755886579406,0.04,4793.8,4793.7,3.0]
[1755886579611,0.04,4793.8,4793.7,6.57829024]
[1755886579803,0.04,4793.8,4793.7,6.55742953]
[1755886580006,0.8023,4793.8,4793.7,3.654]
[1755886580205,0.8023,4793.8,4792.9,12.72136479]
[1755886580206,0.9063,4793.8,4793.1,0.104]
[1755886580407,0.9063,4793.8,4792.9,3.654]
[1755886580408,0.4522,4793.7,4792.9,3.654]
[1755886580611,0.4141,4793.0,4792.2,3.654]
[1755886580896,0.4141,4793.0,4792.1,0.74588955]
[1755886580897,0.104,4792.6,4792.1,0.74588955]
[1755886581101,0.3101,4792.2,4792.0,0.74588955]
[1755886581310,0.4522,4792.1,4791.9,0.74588955]
[1755886581518,0.104,4792.2,4792.0,0.02086811]
[1755886581730,0.4522,4792.9,4792.0,0.02086811]
[1755886581731,0.04,4793.8,4792.1,11.97547524]
[1755886581950,0.04,4793.8,4792.8,11.97547524]
[1755886582099,0.04,4793.8,4792.0,1.737]
[1755886582100,0.4522,4793.7,4792.0,1.737]
[1755886582298,0.4522,4793.7,4792.2,3.0]
[1755886583139,0.04,4793.8,4792.7,3.0]
[1755886583312,0.04,4793.8,4792.8,3.67386463]
[1755886583508,0.04,4793.8,4793.3,11.97547524]
[1755886583710,0.04,4793.8,4793.4,3.0]
[1755886584020,0.04,4793.8,4793.5,3.653]
[1755886584525,0.04,4793.8,4792.9,1.737]
[1755886584526,0.04,4793.8,4793.6,3.653]
[1755886585653,0.04,4793.8,4793.7,3.653]
[1755886585654,0.4922,4793.8,4793.7,3.653]
[1755886585855,0.4922,4793.8,4792.9,1.737]
[1755886585856,0.04,4793.8,4792.9,1.737]
[1755886586011,0.04,4793.8,4793.1,3.0]
[1755886586218,0.04,4793.8,4793.2,0.02086288]
[1755886586555,0.04,4793.8,4793.4,3.0]
[1755886586757,0.04,4793.8,4793.5,0.02086158]
[1755886587850,0.4922,4793.8,4793.5,0.02086158]
[1755886588016,0.4522,4793.7,4793.4,3.0]
[1755886588224,0.04,4793.8,4793.4,3.02086201]
[1755886588636,0.04,4793.8,4793.4,3.0]
[1755886589253,0.04,4793.8,4793.5,0.02086158]
[1755886590015,0.4922,4793.8,4793.6,3.652]
[1755886590250,0.04,4793.8,4793.6,3.652]
[1755886590748,0.04,4793.8,4793.4,3.0]
[1755886590918,0.4922,4793.8,4793.5,3.652]
[1755886591250,0.4922,4793.8,4793.4,3.0]
[1755886591251,0.4922,4793.8,4793.6,3.652]
[1755886591447,0.7623,4793.7,4792.9,1.737]
[1755886591750,0.104,4793.3,4792.9,3.652]
[1755886591934,0.5562,4793.3,4792.9,3.652]
[1755886592133,0.4522,4793.2,4792.9,3.652]
[1755886592336,0.3101,4793.0,4792.9,3.652]
[1755886592540,0.8663,4793.0,4792.9,3.652]
[1755886592752,0.04,4793.8,4792.9,3.652]
[1755886592918,0.04,4793.8,4793.7,0.104]
[1755886593120,0.04,4793.8,4793.7,3.756]
[1755886595126,0.002,4794.3,4793.9,0.66]
[1755886595330,0.4522,4796.5,4794.4,0.66]
[1755886595637,0.4522,4796.5,4794.3,3.0]
[1755886595638,0.4522,4796.5,4795.6,11.97547524]
[1755886595842,0.4522,4796.5,4795.7,3.659]
[1755886597933,0.4522,4796.5,4794.5,2.48288955]
[1755886597934,0.4522,4796.2,4795.0,3.0]
[1755886598143,0.4522,4796.2,4795.2,3.0]
[1755886598745,0.02,4796.8,4794.0,0.74588955]
[1755886598746,0.3101,4795.3,4794.0,0.74588955]
[1755886598952,0.4522,4795.2,4794.1,3.655]
[1755886599253,0.4522,4795.2,4794.2,3.0]
[1755886599623,0.3101,4794.3,4794.0,3.656]
[1755886599945,0.4522,4794.2,4793.1,3.655]
[1755886600146,0.4522,4794.2,4793.2,3.0]
[1755886600457,0.4522,4794.2,4793.0,1.736]
[1755886600646,0.3101,4793.3,4792.4,11.97547524]
[1755886600821,0.4522,4793.2,4792.5,3.654]
[1755886601154,0.4522,4793.2,4792.0,2.362578]
[1755886601155,0.3101,4792.6,4792.3,3.659]
[1755886601353,0.4522,4793.2,4792.4,0.02086637]
[1755886601658,0.4522,4793.2,4792.3,3.659]
[1755886601880,0.4522,4793.2,4792.4,0.02086637]
[1755886602745,0.4522,4793.8,4792.3,3.659]
[1755886603264,0.4522,4793.8,4792.0,1.736]
[1755886603466,0.4522,4793.8,4792.2,3.0]
[1755886603657,0.4522,4793.8,4792.3,0.0218668]
[1755886603859,0.4542,4793.8,4792.3,0.001]
[1755886604060,0.4542,4793.8,4792.4,3.655]
[1755886604369,0.4542,4793.8,4792.5,3.02086593]
[1755886604570,0.4542,4793.8,4792.5,3.0]
[1755886604571,0.002,4793.8,4792.5,3.0]
[1755886604747,0.4522,4793.7,4792.3,0.001]
[1755886604947,0.4522,4793.7,4792.5,3.0]
[1755886605149,0.104,4793.4,4792.7,0.104]
[1755886605334,0.4522,4793.3,4792.7,3.104]
[1755886605944,0.4522,4793.3,4792.8,3.653]
[1755886606750,0.104,4793.4,4792.8,3.653]
[1755886606956,0.4542,4793.8,4792.8,3.653]
[1755886607269,0.4542,4793.8,4793.0,0.104]
[1755886607270,0.104,4793.6,4793.0,0.104]
[1755886608195,0.5753,4793.6,4792.8,3.653]
[1755886609194,0.2986,4792.9,4792.8,3.653]
[1755886609435,0.7699,4792.9,4792.3,0.001]
[1755886609763,0.4713,4792.8,4792.3,0.001]
[1755886609959,0.2986,4792.4,4792.3,0.001]
[1755886610402,0.7699,4792.4,4792.3,0.001]
[1755886613061,0.4713,4793.0,4792.3,0.001]
[1755886613603,0.66,4792.3,4791.7,0.001]
[1755886613774,0.66,4791.7,4790.2,0.001]
[1755886613960,1.737,4791.7,4790.2,0.001]
[1755886614165,0.4713,4791.6,4790.2,0.001]
[1755886615109,0.66,4791.5,4790.2,0.001]
[1755886615420,0.2986,4790.3,4790.2,0.001]
[1755886615779,0.7699,4790.3,4790.2,0.001]
[1755886616778,0.4713,4790.3,4790.2,0.001]
[1755886617314,0.4713,4790.8,4790.2,0.001]
[1755886617619,0.4713,4790.3,4790.2,0.001]
[1755886617917,0.4713,4790.9,4790.2,0.001]
[1755886618708,0.2986,4790.3,4790.2,0.001]
[1755886618910,0.4713,4790.9,4790.2,0.001]
[1755886619616,0.104,4790.3,4790.2,0.001]
[1755886621228,0.7699,4790.3,4790.2,0.001]
[1755886622283,1.737,4791.7,4790.2,0.001]
[1755886622486,0.4713,4791.2,4790.2,0.02187595]
[1755886622735,0.4713,4791.2,4790.2,0.001]
[1755886623033,1.737,4791.7,4790.2,0.02187595]
[1755886623387,1.737,4791.7,4790.2,0.001]
[1755886623591,0.4713,4791.6,4790.2,0.001]
[1755886623985,0.66,4791.5,4790.2,0.001]
[1755886624210,0.2986,4790.3,4790.2,0.001]
[1755886624487,0.4713,4791.4,4790.2,0.001]
[1755886624718,0.4713,4791.3,4790.2,0.02527595]
[1755886625320,0.4713,4791.9,4790.8,11.97547524]
[1755886625620,0.36051209,4792.0,4790.8,11.97547524]
[1755886625621,0.36051209,4792.0,4790.9,0.0208729]
[1755886625810,0.36051209,4792.0,4790.9,3.0]
[1755886626009,0.36051209,4792.0,4791.0,0.02087246]
[1755886626206,0.36051209,4792.0,4790.9,3.0]
[1755886626384,0.36051209,4792.0,4791.0,0.02087246]
[1755886626583,0.36051209,4792.0,4790.9,3.0]
[1755886626907,0.36051209,4792.0,4790.8,1.738]
[1755886626908,0.4713,4791.9,4790.8,1.738]
[1755886627417,0.4713,4791.9,4790.9,0.0208729]
[1755886627826,0.4713,4791.9,4790.8,1.738]
[1755886628010,0.4713,4791.9,4790.9,0.0208729]
[1755886629430,0.4713,4791.9,4791.0,3.0]
[1755886629601,0.36051209,4792.0,4791.1,0.02087203]
[1755886629926,0.36051209,4792.0,4791.0,3.74588955]
[1755886630421,0.36051209,4792.0,4790.8,0.74588955]
[1755886630422,0.2986,4791.1,4790.8,0.74588955]
[1755886630626,0.2986,4791.1,4790.6,0.74588955]
[1755886630812,0.4713,4791.0,4790.2,0.74688955]
[1755886631187,0.104,4790.9,4790.2,0.105]
[1755886631430,0.104,4790.9,4790.2,12.08047524]
[1755886631628,0.104,4791.1,4790.5,0.104]
[1755886631794,0.104,4791.1,4790.6,0.02087421]
[1755886632125,0.104,4791.5,4790.8,0.104]
[1755886633108,0.83181209,4792.0,4791.3,0.104]
[1755886633321,0.36051209,4792.0,4791.4,3.6814]
[1755886633537,0.83181209,4792.0,4791.4,3.678]
[1755886633704,0.104,4791.8,4791.5,0.02087029]
[1755886633912,0.36051209,4792.0,4791.5,0.02087029]
[1755886634115,0.36051209,4792.0,4791.4,3.782]
[1755886634500,0.36051209,4792.0,4791.4,3.678]
[1755886634694,0.104,4791.8,4791.2,3.679]
[1755886635393,0.104,4791.8,4791.3,0.02087116]
[1755886636014,0.104,4791.8,4791.2,3.679]
[1755886636191,0.104,4791.8,4791.3,0.02087116]
[1755886636532,0.5753,4791.8,4791.3,0.02087116]
[1755886636695,0.5753,4791.8,4791.2,4.42488955]
[1755886637041,0.5773,4791.8,4791.2,3.679]
[1755886637398,0.4733,4791.8,4791.2,3.679]
[1755886637598,0.104,4791.5,4791.2,3.679]
[1755886637797,0.4713,4791.4,4791.2,3.679]
[1755886638041,0.7318,4791.3,4791.2,3.679]
[1755886638532,0.104,4791.5,4791.2,3.679]
[1755886638916,0.4332,4791.4,4791.2,3.679]
[1755886639119,0.4332,4791.3,4791.2,3.679]
[1755886639418,0.7383,4791.3,4790.8,0.74588955]
[1755886639627,0.3051,4791.3,4790.7,0.74588955]
[1755886639853,0.4332,4791.2,4790.9,0.0208729]
[1755886640236,0.104,4791.0,4790.9,0.0208729]
[1755886640548,0.104,4791.0,4790.5,0.74588955]
[1755886640549,0.5372,4791.0,4790.5,0.74588955]
[1755886640911,0.104,4791.0,4790.5,0.74588955]
[1755886641112,0.3051,4790.6,4790.3,0.74588955]
[1755886641353,0.104,4790.4,4790.2,0.001]
[1755886641657,0.3051,4790.3,4790.2,0.001]
[1755886642022,0.7383,4790.3,4790.2,0.001]
[1755886642227,1.3983,4790.3,4790.2,0.001]
[1755886643046,0.7383,4790.3,4790.2,0.001]
[1755886643404,0.104,4790.4,4790.2,0.001]
[1755886643606,0.104,4790.4,4790.3,0.02087551]
[1755886643951,0.8423,4790.4,4790.2,0.001]
[1755886644111,0.4091,4790.4,4790.2,0.001]
[1755886644310,0.4332,4790.3,4790.2,0.001]
[1755886644623,0.4091,4790.4,4790.2,0.001]
[1755886644624,0.104,4790.4,4790.2,0.001]
[1755886644821,0.104,4790.4,4790.2,0.02187595]
[1755886645022,0.104,4790.4,4790.2,0.001]
[1755886645257,0.104,4790.4,4790.2,0.02187595]
[1755886645560,0.104,4790.4,4790.2,0.001]
[1755886645905,0.4332,4790.9,4790.2,0.001]
[1755886645906,0.104,4790.6,4790.2,0.001]
[1755886647366,1.738,4791.5,4790.2,0.001]
[1755886647367,0.104,4790.8,4790.2,0.001]
[1755886648119,0.3051,4790.3,4790.2,0.001]
[1755886648327,0.4091,4790.3,4790.2,0.001]
[1755886648547,0.8423,4790.3,4790.2,0.001]
[1755886650552,0.4332,4791.1,4790.2,0.001]
[1755886650720,0.104,4790.5,4790.2,0.001]
[1755886651532,0.3051,4790.3,4790.2,0.001]
[1755886652136,0.7383,4790.3,4790.2,0.001]
[1755886654140,1.3983,4790.3,4790.2,0.001]
[1755886654741,0.7383,4790.3,4790.2,0.001]
[1755886655138,0.8423,4790.3,4790.2,0.001]
[1755886655645,0.104,4790.3,4790.2,0.001]
[1755886656218,0.8423,4790.3,4790.2,0.001]
[1755886661512,0.104,4790.3,4790.2,0.001]
[1755886661713,0.104,4790.3,4790.2,0.02187595]
[1755886661912,0.104,4790.3,4790.2,0.001]
[1755886662344,0.8423,4790.3,4790.2,0.001]
[1755886662658,0.104,4790.3,4790.2,0.02527595]
[1755886662858,0.516811,4791.5,4790.2,0.0044]
[1755886663060,0.104,4791.0,4790.3,0.104]
[1755886663265,0.104,4791.3,4790.9,0.0034]
[1755886663423,0.104,4791.3,4790.6,0.104]
[1755886663756,0.104,4790.9,4790.7,0.19489259]
[1755886663928,0.104,4790.9,4790.8,0.19489259]
[1755886665255,0.8423,4790.9,4790.8,0.19489259]
[1755886665447,0.8423,4790.9,4790.8,0.19504745]
[1755886666964,1.5023,4790.9,4790.8,0.19504745]
[1755886668260,1.3983,4790.9,4790.8,0.19504745]
[1755886668461,1.5023,4790.9,4790.8,0.19504745]
[1755886668662,1.3983,4790.9,4790.8,0.19504745]
[1755886668864,0.66,4790.8,4790.2,0.001]
[1755886669066,0.9541,4790.3,4790.2,0.001]
[1755886669366,1.0581,4790.3,4790.2,0.001]
[1755886669547,1.4963,4790.3,4790.2,0.001]
[1755886669750,1.579923,4790.3,4790.2,0.001]
[1755886671936,1.579923,4790.3,4789.7,0.001]
[1755886671937,0.66,4790.2,4789.7,0.001]
[1755886672142,0.2941,4789.9,4789.7,0.001]
[1755886672342,0.66,4789.7,4789.3,0.001]
[1755886672539,0.9541,4789.4,4789.3,0.001]
[1755886672738,0.2941,4789.4,4789.3,0.001]
[1755886673412,1.359564,4789.4,4789.3,0.001]
[1755886673947,2.019564,4789.4,4789.3,0.001]
[1755886674782,5.679564,4789.4,4789.3,0.001]
[1755886674936,5.681564,4789.4,4789.3,0.001]
[1755886675379,2.019564,4789.4,4789.3,0.001]
[1755886676234,3.66,4789.5,4789.3,0.001]
[1755886676641,0.083636,4789.4,4789.3,0.001]
[1755886676945,0.815936,4789.4,4789.3,0.001]
[1755886677880,0.083636,4789.4,4789.3,0.001]
[1755886678808,0.083636,4789.4,4789.3,0.0412]
[1755886679011,0.4382,4790.7,4789.3,0.0412]
[1755886679315,0.627122,4790.4,4789.3,0.0412]
[1755886679477,0.627122,4790.4,4789.4,0.02087944]
[1755886679680,0.627122,4790.4,4789.3,0.001]
[1755886680203,3.659,4790.6,4789.3,0.001]
[1755886680506,0.4382,4790.4,4789.3,0.001]
[1755886680933,4.285133,4790.6,4789.3,0.001]
[1755886681211,0.627133,4790.6,4789.3,0.001]
[1755886681371,0.4382,4790.5,4789.3,0.001]
[1755886681704,0.66,4790.4,4789.3,0.001]
[1755886681914,0.104,4789.4,4789.3,0.001]
[1755886682708,3.658,4791.1,4789.3,0.0663]
[1755886682915,0.104,4790.1,4789.5,15.59832297]
[1755886683217,0.104,4790.1,4789.5,17.16766556]
[1755886683218,0.07269645,4790.1,4789.5,17.16766556]
[1755886683448,0.07269645,4790.1,4790.0,0.0402]
[1755886683712,0.104,4790.3,4790.0,0.0402]
[1755886683895,0.104,4790.3,4790.1,0.02087639]
[1755886684207,0.104,4790.3,4790.2,0.0402]
[1755886684506,0.104,4790.3,4789.6,0.104]
[1755886684740,0.104,4790.3,4789.7,0.02087813]
[1755886685481,0.104,4790.3,4789.4,0.104]
[1755886685674,0.104,4790.0,4789.4,0.104]
[1755886685878,0.104,4790.0,4789.3,0.001]
[1755886686476,0.2941,4789.4,4789.3,0.001]
[1755886686720,0.3981,4789.4,4789.3,0.001]
[1755886686926,0.919937,4789.4,4789.3,0.001]
[1755886687315,1.579937,4789.4,4789.3,0.001]
[1755886687825,5.237937,4789.4,4789.3,0.001]
[1755886687991,4.473937,4789.4,4789.3,0.001]
[1755886688183,0.187637,4789.4,4789.3,0.001]
[1755886688539,0.919937,4789.4,4789.3,0.001]
[1755886689544,0.187637,4789.4,4789.3,0.001]
[1755886689950,0.104,4789.4,4789.3,0.001]
[1755886690150,0.187631,4789.4,4789.3,0.001]
[1755886690741,0.187631,4789.4,4788.0,1.08528437]
[1755886691047,0.187631,4789.4,4788.1,1.69124584]
[1755886691211,0.083631,4789.4,4788.2,0.1048]
[1755886691407,0.1048,4788.8,4788.3,0.02088423]
[1755886692052,1.738,4789.9,4788.4,15.59832297]
[1755886692255,0.104,4789.3,4788.6,0.1048]
[1755886692463,0.4382,4789.3,4788.1,3.0]
[1755886692759,4.285169,4789.8,4788.3,15.70312297]
[1755886692970,4.285169,4789.8,4788.4,0.0208838]
[1755886692971,0.1048,4789.1,4788.4,0.0208838]
[1755886693279,0.1048,4789.1,4788.3,15.70312297]
[1755886693432,1.738,4789.9,4788.9,15.59832297]
[1755886693634,1.738,4789.9,4789.0,1.58071348]
[1755886693828,0.104,4789.8,4789.1,0.1048]
[1755886694061,0.104,4789.8,4789.5,15.59832297]
[1755886694374,0.104,4790.5,4789.7,0.104]
[1755886694535,0.104,4790.5,4789.8,1.89110999]
[1755886694732,0.104,4790.5,4790.1,15.59832297]
[1755886694977,0.104,4790.5,4790.2,0.21597276]
[1755886695173,0.104,4790.5,4790.3,0.19509681]
[1755886695478,0.104,4790.5,4790.4,0.19509681]
[1755886696672,0.104,4790.5,4790.1,15.59832297]
[1755886696673,0.5422,4790.5,4790.1,15.59832297]
[1755886696830,0.5422,4790.5,4790.2,0.19504625]
[1755886697034,0.104,4790.5,4790.3,0.19504625]
[1755886697248,0.104,4790.5,4790.4,0.19504625]
[1755886698370,0.66,4790.4,4788.5,1.49535894]
[1755886698595,0.66,4790.2,4788.2,15.59832297]
[1755886698862,0.45168439,4790.1,4788.3,3.0]
[1755886699063,0.66,4790.0,4788.2,15.59832297]
[1755886699365,0.66,4789.8,4787.8,1.51535894]
[1755886699663,0.66,4789.6,4787.8,0.02]
[1755886699881,1.75888439,4789.5,4787.8,0.02]
[1755886700080,0.66,4789.3,4787.8,0.02]
[1755886700289,0.02088439,4789.2,4787.8,0.02]
[1755886700458,0.3058,4787.9,4787.8,0.02]
[1755886700658,0.7366,4787.9,4787.8,0.02]
[1755886701655,0.627417,4788.2,4787.8,0.02]
[1755886701963,0.4308,4788.1,4787.8,0.02]
[1755886702156,0.3058,4787.9,4787.8,0.02]
[1755886702680,1.738,4788.4,4787.8,0.02]
[1755886703602,0.3058,4787.9,4787.8,0.02]
[1755886704006,0.45168439,4788.3,4787.8,0.02]
[1755886704152,0.45168439,4788.3,4787.8,0.021]
[1755886704153,0.4308,4788.3,4787.8,0.021]
[1755886704352,0.4308,4788.2,4787.8,0.021]
[1755886705094,0.4308,4788.1,4787.8,0.021]
[1755886705602,1.738,4788.4,4787.8,0.021]
[1755886705754,1.738,4788.4,4788.0,0.3047]
[1755886706888,0.4308,4789.1,4788.1,0.02088511]
[1755886707184,0.083642,4789.2,4788.0,0.3047]
[1755886707185,1.738,4789.2,4788.0,15.59832297]
[1755886707393,1.738,4789.2,4788.1,1.5619323]
[1755886707971,1.738,4789.2,4788.6,15.59832297]
[1755886708296,4.0888,4789.9,4788.6,15.59832297]
[1755886708628,0.104,4789.3,4788.6,15.70312297]
[1755886708895,0.104,4789.3,4788.6,0.1048]
[1755886709263,0.4308,4789.4,4788.1,1.5619323]
[1755886709473,0.1048,4788.9,4788.4,15.59832297]
[1755886709699,4.0888,4789.9,4788.8,0.3047]
[1755886709897,0.1048,4789.1,4788.9,0.02088162]
[1755886710103,0.1048,4789.1,4789.0,0.3047]
[1755886710304,0.104,4790.0,4789.0,19.86082297]
[1755886710501,1.738,4790.9,4789.6,0.104]
[1755886710502,0.104,4790.3,4789.6,0.104]
[1755886711412,0.104,4790.3,4789.7,0.19469318]
[1755886711571,0.104,4790.3,4789.8,0.19469318]
[1755886711768,0.104,4790.3,4789.9,0.19469318]
[1755886712007,0.104,4790.3,4790.0,0.19469318]
[1755886712178,0.104,4790.3,4790.1,0.19469318]
[1755886712382,0.104,4790.3,4790.2,0.19469318]
[1755886712784,0.104,4790.3,4790.2,0.49939318]
[1755886714384,0.104,4790.3,4790.2,0.3047]
[1755886714587,0.104,4790.3,4790.2,0.49935155]
[1755886714984,0.104,4790.3,4790.2,0.19465155]
[1755886715575,0.02,4790.8,4790.2,0.19465155]
[1755886715576,0.02,4790.8,4790.2,0.49935155]
[1755886715771,0.124,4790.8,4790.3,15.79297452]
[1755886715979,0.02,4790.8,4790.4,0.19465155]
[1755886716176,0.3078,4790.5,4790.4,0.19465155]
[1755886716383,0.4118,4790.5,4790.4,0.19465155]
[1755886716702,0.8426,4790.5,4790.4,0.19465155]
[1755886717521,0.8426,4790.5,4790.4,0.19460535]
[1755886717878,0.106,4790.5,4790.4,0.19460535]
[1755886718079,0.4118,4790.5,4790.4,0.19460535]
[1755886718511,0.106,4790.5,4790.4,0.19460535]
[1755886720084,0.02,4790.8,4790.4,2.20556086]
[1755886720288,0.02,4790.8,4790.7,15.59832297]
[1755886720502,0.002,4791.4,4791.3,15.59832297]
[1755886720704,0.002,4791.7,4791.3,16.09762832]
[1755886720901,0.4308,4793.5,4791.4,3.41047607]